Workbook

Sheet Лист1
A1: Школа | C1: МБОУ "Кургузинская ОШ ЗМР РТ" | F1: Утвердил: | G1: должность | H1: директор школы
A2: Типовое примерное меню приготавливаемых блюд | G2: фамилия | H2: И.Ю.Рахимов
A3: Возрастная категория | E3: 7-11 лет | G3: дата | H3: 2 | I3: 10 | J3: 2023
H4: день | I4: месяц | J4: год
A5: Неделя | B5: День недели | C5: Прием пищи | D5: Раздел меню | E5: Блюда | F5: Вес блюда, г | G5: Белки | H5: Жиры | I5: Углеводы | J5: Калорийность | K5: № рецептуры | L5: Цена
A6: 1 | B6: 1 | C6: Завтрак | D6: гор.блюдо | E6: Рис отварной | F6: 140 | G6: 3.57 | H6: 5.07 | I6: 37.35 | J6: 209 | K6: 304/2015 | L6: 64.19
D7: гор.блюдо | E7: Грудка куриная в томатном соусе | F7: 45/45 | G7: 10.45 | H7: 6.5 | I7: 3.27 | J7: 113 | K7: ТТК2021
D8: гор.напиток | E8: Напиток из замороженной черной смородины | F8: 200 | G8: 0.1 | H8: 0.04 | I8: 10.71 | J8: 44 | K8: ТТК2021
D9: хлеб | E9: Хлеб пшеничный, хлеб ржано-пшеничный | F9: 20/20 | G9: 2.52 | H9: 0.36 | I9: 18.84 | J9: 91
D10: фрукты
D11: Салат-бар | E11: Морковь свежая порциями, капуста белокачанная свежая порциями, кукуруза консервированная, сухарики из пшеничного хлеба, масло растительное | F11: 60 | G11: 1.56 | H11: 6.16 | I11: 7.78 | J11: 94 | K11: ТТК2023
D13: итого | F13: 530 | G13: =SUM(G6:G12) -> 18.2 | H13: 18.13 | I13: 77.95 | J13: 551 | L13: =SUM(L6:L12) -> 64.19
A14: =A6 -> 1 | B14: =B6 -> 1 | C14: Обед | D14: закуска
D15: 1 блюдо
D16: 2 блюдо
D17: гарнир
D18: напиток
D19: хлеб бел.
D20: хлеб черн.
D23: итого | F23: =SUM(F14:F22) -> 0 | G23: =SUM(G14:G22) -> 0 | H23: 0 | I23: 0 | J23: 0 | L23: =SUM(L14:L22) -> 0
A24: =A6 -> 1 | B24: =B6 -> 1 | C24: Итого за день: | F24: =F13+F23 -> 530 | G24: =G13+G23 -> 18.2 | H24: 18.13 | I24: 77.95 | J24: 551 | L24: =L13+L23 -> 64.19
A25: 1 | B25: 2 | C25: Завтрак | D25: гор.блюдо | E25: Жаркое по -домашнему | F25: 40/120 | G25: 8.64 | H25: 7.5 | I25: 21.63 | J25: 189 | K25: ТТК2022 | L25: 64.19
D27: гор.напиток | E27: Кофейный напиток с молоком | F27: 200 | G27: 3.3 | H27: 1.51 | I27: 21.8 | J27: 120 | K27: 379/2015
D28: хлеб | E28: Хлеб пшеничный, хлеб ржано-пшеничный | F28: 20/20 | G28: 2.52 | H28: 0.36 | I28: 18.84 | J28: 91
D29: фрукты | E29: Яблоки | F29: 50 | G29: 0.2 | H29: 0.2 | I29: 4.9 | J29: 24 | K29: 532/2013
D30: Салат-бар | E30: Свекла отварная (тертая), морковь свежая порциями, сыр, сухарики из пшеничного хлеба, масло растительное | F30: 60 | G30: 3.86 | H30: 8.74 | I30: 7.46 | J30: 125 | K30: ТТК2023
D32: итого | F32: 510 | G32: =SUM(G25:G31) -> 18.52 | H32: =SUM(H25:H31) -> 18.31 | I32: =SUM(I25:I31) -> 74.63 | J32: =SUM(J25:J31) -> 549 | L32: 64.19
A33: =A25 -> 1 | B33: =B25 -> 2 | C33: Обед | D33: закуска
D34: 1 блюдо
D35: 2 блюдо
D36: гарнир
D37: напиток
D38: хлеб бел.
D39: хлеб черн.
D42: итого | F42: =SUM(F33:F41) -> 0 | G42: =SUM(G33:G41) -> 0 | H42: =SUM(H33:H41) -> 0 | I42: =SUM(I33:I41) -> 0 | J42: =SUM(J33:J41) -> 0 | L42: 0
A43: =A25 -> 1 | B43: =B25 -> 2 | C43: Итого за день: | F43: =F32+F42 -> 510 | G43: =G32+G42 -> 18.52 | H43: =H32+H42 -> 18.31 | I43: =I32+I42 -> 74.63 | J43: =J32+J42 -> 549 | L43: 64.19
A44: 1 | B44: 3 | C44: Завтрак | D44: гор.блюдо | E44: Макарона отварные с сыром | F44: 140 | G44: 5.39 | H44: 6.65 | I44: 29.98 | J44: 201 | K44: ТТК2019 | L44: 64.19
D45: гор.блюдо | E45: Сосиски отварные | F45: 100 | G45: 8.6 | H45: 4.8 | I45: 11.75 | J45: 125 | K45: 243/2015
D46: гор.напиток | E46: Чай с сахаром | F46: 200/8 | G46: 0.01 | H46: 0.16 | I46: 9.84 | J46: 47 | K46: ТТК2021
D47: хлеб | E47: Хлеб пшеничный, хлеб ржано-пшеничный | F47: 20/20 | G47: 2.52 | H47: 0.36 | I47: 18.84 | J47: 91
D48: фрукты
D49: Салат -бар | E49: Помидоры свежие порциями, капуста белокачанная свежая порциями, зеленый горошек консервированный, сухарикм из пшеничного хлеба, масло растительное. | F49: 60 | G49: 1.55 | H49: 6.12 | I49: 6.63 | J49: 89 | K49: ТТК2023
D51: итого | F51: 548 | G51: =SUM(G44:G50) -> 18.07 | H51: =SUM(H44:H50) -> 18.09 | I51: =SUM(I44:I50) -> 77.04 | J51: =SUM(J44:J50) -> 553 | L51: 64.19
A52: =A44 -> 1 | B52: =B44 -> 3 | C52: Обед | D52: закуска
D53: 1 блюдо
D54: 2 блюдо
D55: гарнир
D56: напиток
D57: хлеб бел.
D58: хлеб черн.
D61: итого | F61: =SUM(F52:F60) -> 0 | G61: =SUM(G52:G60) -> 0 | H61: =SUM(H52:H60) -> 0 | I61: =SUM(I52:I60) -> 0 | J61: =SUM(J52:J60) -> 0 | L61: 0
A62: =A44 -> 1 | B62: =B44 -> 3 | C62: Итого за день: | F62: =F51+F61 -> 548 | G62: =G51+G61 -> 18.07 | H62: =H51+H61 -> 18.09 | I62: =I51+I61 -> 77.04 | J62: =J51+J61 -> 553 | L62: 64.19
A63: 1 | B63: 4 | C63: Завтрак | D63: гор.блюдо | E63: Плов с куриными грудками | F63: 40/120 | G63: 13.14 | H63: 12 | I63: 34 | J63: 297 | K63: ТТК2021 | L63: 64.19
D65: гор.напиток | E65: Чай с сахаром, лимоном | F65: 200/8/7 | G65: 0.07 | H65: 0.01 | I65: 8.21 | J65: 35 | K65: ТТК2021
D66: хлеб | E66: Хлеб пшеничный,хлеб ржано-пшеничный | F66: 20/20 | G66: 2.52 | H66: 0.36 | I66: 18.84 | J66: 91
D67: фрукты | E67: Яблоки | F67: 50 | G67: 0.2 | H67: 0.2 | I67: 4.9 | J67: 24 | K67: 532/2013
D68: Салат-бар | E68: Помидоры свежие порциями, огурцы свежие порциями, кукуруза консервированная, сухарики из пшеничного хлеба, масло растительное | F68: 60 | G68: 1.3 | H68: 6.19 | I68: 6.6 | J68: 88 | K68: ТТК2023
D70: итого | F70: 525 | G70: =SUM(G63:G69) -> 17.23 | H70: =SUM(H63:H69) -> 18.76 | I70: =SUM(I63:I69) -> 72.55 | J70: =SUM(J63:J69) -> 535 | L70: 64.19
A71: =A63 -> 1 | B71: =B63 -> 4 | C71: Обед | D71: закуска
D72: 1 блюдо
D73: 2 блюдо
D74: гарнир
D75: напиток
D76: хлеб бел.
D77: хлеб черн.
D80: итого | F80: =SUM(F71:F79) -> 0 | G80: =SUM(G71:G79) -> 0 | H80: =SUM(H71:H79) -> 0 | I80: =SUM(I71:I79) -> 0 | J80: =SUM(J71:J79) -> 0 | L80: 0
A81: =A63 -> 1 | B81: =B63 -> 4 | C81: Итого за день: | F81: =F70+F80 -> 525 | G81: =G70+G80 -> 17.23 | H81: =H70+H80 -> 18.76 | I81: =I70+I80 -> 72.55 | J81: =J70+J80 -> 535 | L81: 64.19
A82: 1 | B82: 5 | C82: Завтрак | D82: гор.блюдо | E82: Пюре картофельное с маслом сливочным | F82: 140/5 | G82: 3.1 | H82: 7.97 | I82: 20.6 | J82: 169 | K82: 312/2015 | L82: 64.19
D83: гор.блюдо | E83: Биточки рыбные из фарша минтая | F83: 90 | G83: 9.8 | H83: 2.01 | I83: 10.2 | J83: 98 | K83: ТТК2021
D84: гор.напиток | E84: Чай с сахаром, лимоном | F84: 200/8/7 | G84: 0.07 | H84: 0.01 | I84: 8.21 | J84: 35 | K84: ТТК2021
D85: хлеб | E85: Хлеб пшеничный,хлеб ржано-пшеничный | F85: 20/20 | G85: 2.52 | H85: 0.36 | I85: 18.84 | J85: 91
D86: фрукты
D87: Салат -бар | E87: Помидоры свежие порциями, огурцы свежие порциями, фасоль консервированная, сухарики из пшеничного хлеба, масло растительное | F87: 60 | G87: 1.62 | H87: 6.1 | I87: 6.92 | J87: 90 | K87: ТТК2023
D88: Десерт | E88: Печенье сдобное "Шоколадное" | F88: 15 | G88: 1.21 | H88: 3.62 | I88: 10.25 | J88: 79 | K88: АКТ 2021
D89: итого | F89: 565 | G89: =SUM(G82:G88) -> 18.32 | H89: =SUM(H82:H88) -> 20.07 | I89: =SUM(I82:I88) -> 75.02 | J89: =SUM(J82:J88) -> 562 | L89: 64.19
A90: =A82 -> 1 | B90: =B82 -> 5 | C90: Обед | D90: закуска
D91: 1 блюдо
D92: 2 блюдо
D93: гарнир
D94: напиток
D95: хлеб бел.
D96: хлеб черн.
D99: итого | F99: =SUM(F90:F98) -> 0 | G99: =SUM(G90:G98) -> 0 | H99: =SUM(H90:H98) -> 0 | I99: =SUM(I90:I98) -> 0 | J99: =SUM(J90:J98) -> 0 | L99: 0
A100: =A82 -> 1 | B100: =B82 -> 5 | C100: Итого за день: | F100: =F89+F99 -> 565 | G100: =G89+G99 -> 18.32 | H100: =H89+H99 -> 20.07 | I100: =I89+I99 -> 75.02 | J100: =J89+J99 -> 562 | L100: 64.19
A101: 1 | B101: 6 | C101: Завтрак | D101: гор.блюдо | E101: Пельмени "Для умников и умниц" отварные | F101: 150 | G101: 14 | H101: 8.5 | I101: 42 | J101: 301 | K101: ТТК2015 | L101: 64.19
D103: гор.напиток | E103: Чай с сахаром, лимоном | F103: 200/8/7 | G103: 0.07 | H103: 0.01 | I103: 8.21 | J103: 35 | K103: ТТК2021
D104: хлеб | E104: Хлеб пшеничный | F104: 20 | G104: 1.52 | H104: 0.16 | I104: 9.84 | J104: 47
D105: фрукты | E105: Яблоки | F105: 90 | G105: 0.36 | H105: 0.36 | I105: 8.82 | J105: 42 | K105: 532/2013
D106: Салат-бар | E106: Помидоры свежие порциями, огурцы свежие порциями, масло растительное | F106: 60 | G106: 0.45 | H106: 10.06 | I106: 1.42 | J106: 99 | K106: ТТК2023
D108: итого | F108: 535 | G108: =SUM(G101:G107) -> 16.4 | H108: 19.09 | I108: 70.29 | J108: 524 | L108: =SUM(L101:L107) -> 64.19
A109: =A101 -> 1 | B109: 6 | C109: Обед | D109: закуска
D110: 1 блюдо
D111: 2 блюдо
D112: гарнир
D113: напиток
D114: хлеб бел.
D115: хлеб черн.
D118: итого | F118: =SUM(F109:F117) -> 0 | G118: =SUM(G109:G117) -> 0 | H118: 0 | I118: 0 | J118: 0 | L118: =SUM(L109:L117) -> 0
A119: =A101 -> 1 | B119: =B101 -> 6 | C119: Итого за день: | F119: =F108+F118 -> 535 | G119: =G108+G118 -> 16.4 | H119: =H108+H118 -> 19.09 | I119: =I108+I118 -> 70.29 | J119: =J108+J118 -> 524 | L119: 64.19
A120: 2 | B120: 1 | C120: Завтрак | D120: гор.блюдо | E120: Макароны отварные с сыром | F120: 140 | G120: 5.39 | H120: 6.65 | I120: 29.98 | J120: 201 | K120: .ТТК2019 | L120: 64.19
D121: гор.блюдо | E121: Котлеты"Столичные" | F121: 90 | G121: 8.1 | H121: 4.05 | I121: 3.4 | J121: 83 | K121: ТТК2023
D122: гор.напиток | E122: Чай с сахаром, лимоном | F122: 200/8/7 | G122: 0.07 | H122: 0.01 | I122: 8.21 | J122: 35 | K122: ТТК2021
D123: хлеб | E123: Хлеб пшеничный,хлеб ржано-пшеничный | F123: 20/20 | G123: 2.52 | H123: 0.36 | I123: 18.84 | J123: 91
D124: фрукты
D125: Салат-бар | E125: Морковь свежая порциями, капуста белокачанная ссвежая порциями, сыр,сухарики из пшеничного хлеба, масло растительное | F125: 60 | G125: 3.91 | H125: 8.74 | I125: 6.6 | J125: 122 | K125: ТТК2023
D127: итого | F127: 545 | G127: =SUM(G120:G126) -> 19.99 | H127: 19.81 | I127: 67.03 | J127: 532 | L127: =SUM(L120:L126) -> 64.19
A128: =A120 -> 2 | B128: =B120 -> 1 | C128: Обед | D128: закуска
D129: 1 блюдо
D130: 2 блюдо
D131: гарнир
D132: напиток
D133: хлеб бел.
D134: хлеб черн.
D135: Салат-бар
D137: итого | F137: =SUM(F128:F136) -> 0 | G137: =SUM(G128:G136) -> 0 | H137: 0 | I137: 0 | J137: 0 | L137: =SUM(L128:L136) -> 0
A138: =A120 -> 2 | B138: =B120 -> 1 | C138: Итого за день: | F138: =F127+F137 -> 545 | G138: =G127+G137 -> 19.99 | H138: =H127+H137 -> 19.81 | I138: =I127+I137 -> 67.03 | J138: =J127+J137 -> 532 | L138: 64.19
A139: 2 | B139: 2 | C139: Завтрак | D139: гор.блюдо | E139: Жаркое из птицы (грудки куриные) | F139: 40/120 | G139: 12.98 | H139: 10.63 | I139: 28.5 | J139: 262 | K139: ТТК2023 | L139: 64.19
D141: гор.напиток | E141: Напиток из замороженной черной смородины | F141: 200 | G141: 0.1 | H141: 0.04 | I141: 10.71 | J141: 44 | K141: ТТК2021
D142: хлеб | E142: Хлеб пшеничный,хлеб ржано-пшеничный | F142: 20/20 | G142: 2.52 | H142: 0.36 | I142: 18.84 | J142: 91
D143: фрукты | E143: Яблоки | F143: 50 | G143: 0.2 | H143: 0.2 | I143: 4.9 | J143: 24 | K143: 532/2013
D144: Салат-бар | E144: Морковь свежая порциями, капуста белокачанная свежая порциями, сыр, сухарики из пшеничного хлеба, масло растительное | F144: 60 | G144: 1.56 | H144: 6.17 | I144: 7.78 | J144: 94 | K144: ТТК2023
D146: итого | F146: 510 | G146: =SUM(G139:G145) -> 17.36 | H146: 17.4 | I146: 70.73 | J146: 515 | L146: =SUM(L139:L145) -> 64.19
A147: =A139 -> 2 | B147: 2 | C147: Обед | D147: закуска
D148: 1 блюдо
D149: 2 блюдо
D150: гарнир
D151: напиток
D152: хлеб бел.
D153: хлеб черн.
D156: итого | F156: =SUM(F147:F155) -> 0 | G156: =SUM(G147:G155) -> 0 | H156: 0 | I156: 0 | J156: 0 | L156: =SUM(L147:L155) -> 0
A157: =A139 -> 2 | B157: =B139 -> 2 | C157: Итого за день: | F157: =F146+F156 -> 510 | G157: =G146+G156 -> 17.36 | H157: =H146+H156 -> 17.4 | I157: =I146+I156 -> 70.73 | J157: =J146+J156 -> 515 | L157: 64.19
A158: 2 | B158: 3 | C158: Завтрак | D158: гор.блюдо | E158: Каша гречневая вязкая с маслом | F158: 140/5 | G158: 3.31 | H158: 7.96 | I158: 20.6 | J158: 167 | K158: 303/2015 | L158: 64.19
D159: гор.блюдо | E159: Сосиски ортварные | F159: 100 | G159: 8.6 | H159: 4.8 | I159: 11.75 | J159: 125 | K159: 243/2015
D160: гор.напиток | E160: Чай с сахаром, лимоном | F160: 200/ 8/7 | G160: 0.07 | H160: 0.01 | I160: 8.21 | J160: 35 | K160: ТТК2021
D161: хлеб | E161: Хлеб пшеничный, хлеб ржано-пшеничный | F161: 20/20 | G161: 2.52 | H161: 0.36 | I161: 18.84 | J161: 91
D162: фрукты
D163: Салат -бар | E163: Помидоры свежие порциями, капуста белокачанная свежая порциями, зеленый горошек консервированный, сухарики из пшеничного хлеба, масло растительное. | F163: 60 | G163: 1.55 | H163: 6.12 | I163: 6.63 | J163: 89 | K163: ТТК2023
D165: итого | F165: 560 | G165: =SUM(G158:G164) -> 16.05 | H165: 19.25 | I165: 66.03 | J165: 507 | L165: =SUM(L158:L164) -> 64.19
A166: =A158 -> 2 | B166: =B158 -> 3 | C166: Обед | D166: закуска
D167: 1 блюдо
D168: 2 блюдо
D169: гарнир
D170: напиток
D171: хлеб бел.
D172: хлеб черн.
D175: итого | F175: =SUM(F166:F174) -> 0 | G175: =SUM(G166:G174) -> 0 | H175: 0 | I175: 0 | J175: 0 | L175: =SUM(L166:L174) -> 0
A176: =A158 -> 2 | B176: =B158 -> 3 | C176: Итого за день: | F176: =F165+F175 -> 560 | G176: =G165+G175 -> 16.05 | H176: =H165+H175 -> 19.25 | I176: =I165+I175 -> 66.03 | J176: =J165+J175 -> 507 | L176: 64.19
A177: 2 | B177: 4 | C177: Завтрак | D177: гор.блюдо | E177: Плов с говядиной | F177: 40/120 | G177: 12.2 | H177: 10.6 | I177: 23.09 | J177: 237 | K177: ТТК2021 | L177: 64.19
D179: гор.напиток | E179: Напиток из сухофруктов | F179: 200 | G179: 0.6 | H179: 0.03 | I179: 34.71 | J179: 151 | K179: 639/2004
D180: хлеб | E180: Хлеб пшеничный, хлеб ржано-пшеничный | F180: 20/20 | G180: 2.52 | H180: 0.36 | I180: 18.84 | J180: 91
D181: фрукты | E181: Яблоки | F181: 50 | G181: 0.2 | H181: 0.2 | I181: 4.9 | J181: 24 | K181: 532/2013
D182: Салат-бар | E182: Свекла отварная (тертая), морковь свежая порциями, сыр, сухарики из пшеничного хлеба, масло растительное | F182: 60 | G182: 3.86 | H182: 8.74 | I182: 7.46 | J182: 125 | K182: ТТК2023
D184: итого | F184: 510 | G184: =SUM(G177:G183) -> 19.38 | H184: 19.93 | I184: 89 | J184: 628 | L184: =SUM(L177:L183) -> 64.19
A185: =A177 -> 2 | B185: =B177 -> 4 | C185: Обед | D185: закуска
D186: 1 блюдо
D187: 2 блюдо
D188: гарнир
D189: напиток
D190: хлеб бел.
D191: хлеб черн.
D194: итого | F194: =SUM(F185:F193) -> 0 | G194: =SUM(G185:G193) -> 0 | H194: 0 | I194: 0 | J194: 0 | L194: =SUM(L185:L193) -> 0
A195: =A177 -> 2 | B195: =B177 -> 4 | C195: Итого за день: | F195: =F184+F194 -> 510 | G195: =G184+G194 -> 19.38 | H195: =H184+H194 -> 19.93 | I195: =I184+I194 -> 89 | J195: =J184+J194 -> 628 | L195: 64.19
A196: 2 | B196: 5 | C196: Завтрак | D196: гор.блюдо | E196: Пюре картофельное | F196: 140 | G196: 3.06 | H196: 4.35 | I196: 20.56 | J196: 136 | K196: 312/2015 | L196: 64.19
D197: гор.блюдо | E197: Ежики с мясом и рисом в соусе томатном | F197: 60/40 | G197: 8.2 | H197: 5 | I197: 10.23 | J197: 119 | K197: ТТК2020
D198: гор.напиток | E198: Напиток из замороженной черной смородины | F198: 200 | G198: 0.1 | H198: 0.04 | I198: 10.71 | J198: 44 | K198: ТТК2021
D199: хлеб | E199: Хлеб пшеничный, хлеб ржано-пшеничный | F199: 20/20 | G199: 2.52 | H199: 0.36 | I199: 18.84 | J199: 91
D200: фрукты
D201: Салат -бар | E201: Помидоры свежие порциями, огурцы свежие порциями, фасоль консервированная, сухарики из пшеничного хлеба, масло растительное | F201: 60 | G201: 1.62 | H201: 6.1 | I201: 6.92 | J201: 90 | K201: ТТК2023
D203: итого | F203: 540 | G203: =SUM(G196:G202) -> 15.5 | H203: 15.85 | I203: 67.26 | J203: 480 | L203: =SUM(L196:L202) -> 64.19
A204: =A196 -> 2 | B204: =B196 -> 5 | C204: Обед | D204: закуска
D205: 1 блюдо
D206: 2 блюдо
D207: гарнир
D208: напиток
D209: хлеб бел.
D210: хлеб черн.
D213: итого | F213: =SUM(F204:F212) -> 0 | G213: =SUM(G204:G212) -> 0 | H213: 0 | I213: 0 | J213: 0 | L213: =SUM(L204:L212) -> 0
A214: =A196 -> 2 | B214: =B196 -> 5 | C214: Итого за день: | F214: =F203+F213 -> 540 | G214: =G203+G213 -> 15.5 | H214: 15.85 | I214: 67.26 | J214: 480 | L214: =L203+L213 -> 64.19
A215: 2 | B215: 6 | C215: Завтрак | D215: гор.блюдо | E215: Пельмени "Для умников и умниц" отварные | F215: 150 | G215: 14 | H215: 8.5 | I215: 42 | J215: 301 | K215: ТТК2015 | L215: 64.19
D217: гор.напиток | E217: Чай с сахаром, лимоном | F217: 200/8/7 | G217: 0.07 | H217: 0.01 | I217: 8.21 | J217: 35 | K217: ТТК2021
D218: хлеб | E218: Хлеб пшеничный, хлеб ржано-пшеничный | F218: 20/20 | G218: 2.52 | H218: 0.36 | I218: 18.84 | J218: 91
D219: фрукты | E219: Яблоки | F219: 50 | G219: 0.2 | H219: 0.2 | I219: 4.9 | J219: 24 | K219: 532/2013
E220: Помидоры свежие порциями, огурцы свежие порциями, кукуруза консервированная, масло растительное | F220: 60 | G220: 0.63 | H220: 10.13 | I220: 2.32 | J220: 104 | K220: ТТК2023
D221: Салат-бар
D222: итого | F222: 515 | G222: =SUM(G215:G221) -> 17.42 | H222: 19.2 | I222: 76.27 | J222: 555 | L222: 64.19
A223: =A215 -> 2 | B223: =B215 -> 6 | C223: Обед | D223: закуска
D224: 1 блюдо
D225: 2 блюдо
D226: гарнир
D227: напиток
D228: хлеб бел.
D229: хлеб черн.
D232: итого | F232: =SUM(F223:F231) -> 0 | G232: =SUM(G223:G231) -> 0 | H232: 0 | I232: 0 | J232: 0 | L232: 0
A233: =A215 -> 2 | B233: =B215 -> 6 | C233: Итого за день: | F233: 515 | G233: =G222+G232 -> 17.42 | H233: 19.2 | I233: 76.27 | J233: 555 | L233: 64.19
C234: Среднее значение за период: | F234: 532.75 | G234: 17.7 | H234: 18.65 | I234: 73.65 | J234: 540.9 | L234: =(L62+L81+L100+L119+L138+L157+L176+L195+L214+L233)/(IF(L62=0,0,1)+IF(L81=0,0,1)+IF(L100=0,0,1)+IF(L119=0,0,1)+IF(L138=0,0,1)+IF(L157=0,0,1)+IF(L176=0,0,1)+IF(L195=0,0,1)+IF(L214=0,0,1)+IF(L233=0,0,1)) -> 64.19
